Cogmind - Beta 17 @@@ ROGUE MODE // 2026.08.06 @ 16:21:17 Player: Petvaria Result: Self-destructed Performance ------------- Evolutions (3) 1500 Regions Visited (8) 1600 Robots Destroyed (198) 990 Value Destroyed (6290) 6290 Prototype IDs (30) 600 Alien Tech Used (0) 0 Bonus (2473) 2473 TOTAL SCORE: 13453 Bonus ------- High Alert Combat Kills 2284 Aligned with FarCom 300 Friendly Fire -111 Cogmind --------- Core Integrity 154/700 Matter 270/300 Energy 99/100 System Corruption 52% Temperature Cool (0) Movement Core (50) Location -7/Lower Caves Parts ------- > --- POWER (2) -------- (None) > --- PROPULSION (4) --- (None) > --- UTILITY (4) ------ (None) > --- WEAPON (3) ------- (None) > --- INVENTORY (5) ---- Hardened Medium Armor Plating Peak State ------------ > --- POWER ------------ Improved Deuterium Engine Cooled Deuterium Engine > --- PROPULSION ------- Light Treads Armored Treads Armored Treads Advanced Treads > --- UTILITY ---------- Improved Heat Sink Huge Storage Unit Core Analyzer System Restoration Module > --- WEAPON ----------- Gatling Laser Latent Energy Streamer Gauss Rifle > --- INVENTORY -------- Improved Deuterium Engine Light Treads Light Treads Light Treads Advanced Treads High-capacity Storage Unit Compact Matter Pod Trap Scanner Improved Terrain Scanner Core Analyzer Transmission Jammer Hardened Medium Armor Plating Hardened Heavy Armor Plating Authchip [Weapon] High-powered Tractor Beam Trap Reconfigurator Heavy Particle Gun Heavy Particle Cannon Plasma Cannon Improved Assault Rifle Minigun Enhanced Autogun Gauss Rifle Rocket Launcher [Rating: 57] Favorites ----------- Power Improved Deuterium Engine Engine Improved Deuterium Engine Propulsion Light Treads Treads Light Treads Utility Core Analyzer Device Improved Heat Sink Storage High-capacity Storage Unit Processor Core Analyzer Hackware Hacking Suite Protection Hardened Medium Armor Plating Weapon Enhanced Autogun Energy Gun Gatling Laser Energy Cannon Advanced Beam Cannon Ballistic Gun Enhanced Autogun Ballistic Cannon Assault Cannon Launcher Rocket Launcher Build | -11 -10 -9 -9 -9 -8 -8 -7 -7 ------- Run | Yrd Mat Mat Min Exi Min Mat Fac Low Slots Evolved 6 | . . 2 . . . 2 2 . Power 1 | . . . . . . . 1 . Propulsion 2 | . . 1 . . . 1 . . Utility 2 | . . 1 . . . 1 . . Weapon 1 | . . . . . . . 1 . Parts Attached 104 | 6 4 10 5 8 1 37 33 . Power 14 | 1 . 2 1 . 1 5 4 . Engine 14 | 1 . 2 1 . 1 5 4 . Core . | . . . . . . . . . Reactor . | . . . . . . . . . Propulsion 28 | 2 . 2 1 3 . 11 9 . Treads 28 | 2 . 2 1 3 . 11 9 . Leg . | . . . . . . . . . Wheel . | . . . . . . . . . Hover . | . . . . . . . . . Flight . | . . . . . . . . . Utility 32 | 1 3 2 3 . . 13 10 . Device 12 | . 1 . 1 . . 5 5 . Storage 5 | 1 1 1 . . . 2 . . Processor 4 | . . . . . . 1 3 . Hackware 1 | . . . . . . . 1 . Protection 10 | . 1 1 2 . . 5 1 . Artifact . | . . . . . . . . . Weapon 30 | 2 1 4 . 5 . 8 10 . Energy Gun 8 | 1 1 . . . . 2 4 . Energy Cannon 6 | . . 1 . 3 . . 2 . Ballistic Gun 12 | 1 . 1 . 1 . 5 4 . Ballistic Cannon 2 | . . 1 . . . 1 . . Launcher 2 | . . 1 . 1 . . . . Special Weapon . | . . . . . . . . . Impact Weapon . | . . . . . . . . . Slashing Weapon . | . . . . . . . . . Piercing Weapon . | . . . . . . . . . Special Melee Weapon . | . . . . . . . . . Unidentified Prototypes 7 | . . 1 . . . 4 2 . Parts Lost 36 | . 2 . 4 6 1 10 13 . Power 6 | . . . 1 1 . 1 3 . Propulsion 14 | . . . 1 3 . 4 6 . Utility 8 | . . . 2 1 . 4 1 . Weapon 8 | . 2 . . 1 1 1 3 . Highest Loss Streak 7 | . 1 . 4 6 7 3 4 . To Critical Strikes 3 | . . . . 3 . . . . Average Backups 19 | 3 9 17 19 17 16 20 23 2 Power . | . 1 2 . 1 . . . . Propulsion 3 | 2 2 4 5 4 1 2 3 . Utility 8 | . 5 6 6 5 5 7 11 1 Weapon 7 | . . 3 5 6 9 9 7 . Tool/Special . | . . . . . . . . . Unused Backups 38 | . 2 7 1 5 . 13 9 1 Power 9 | . . 3 . 3 . 1 2 . Propulsion 4 | . 2 1 . 1 . . . . Utility 15 | . . 1 . 1 . 6 6 1 Weapon 10 | . . 2 1 . . 6 1 . Tool/Special . | . . . . . . . . . Average Slot Usage (%) 93 | . 93 85 89 96 65 92 98 . Engine 11 | . 14 11 11 9 10 8 14 . Treads 30 | . 27 33 33 32 32 32 29 . Device 7 | . 6 . 2 11 11 11 6 . Storage 8 | . 14 11 11 11 11 9 6 . Processor 5 | . . . . . . 5 8 . Hackware 1 | . . . . . . . 2 . Protection 5 | . 2 10 10 10 . 7 3 . Energy Gun 4 | . 20 7 . . . . 6 . Energy Cannon 2 | . . 3 11 12 . . . . Ballistic Gun 12 | . 7 5 11 8 . 15 14 . Peak Build Rating 57 | 6 9 16 21 31 18 43 57 2 Average Rating 33 | 5 7 12 16 23 15 33 48 . On Entrance 13 | . 6 7 16 21 16 16 40 2 Avg Prop Armor Cover (%) . | . . . . . . . . . Naked Turns 82 | . . . . . . . 49 33 Heaviest Build 125 | 13 32 55 56 63 44 110 125 . Greatest Support 90 | 40 40 60 60 60 60 82 90 3 Greatest Overweight (x) 2 | . . . . 1 . 2 1 . Average Overweight (x) . | . . . . . . . . . Largest Inventory Capacity 25 | 8 15 20 20 20 20 25 25 5 Average Capacity 21 | 7 12 19 20 20 20 20 24 5 Most Carried 25 | 7 14 20 20 20 18 25 25 5 Average Carried 20 | 4 9 17 19 18 17 20 24 1 Final Capacity 25 | 8 15 20 20 20 20 25 5 5 Final Carried 25 | 7 13 20 17 15 18 25 5 1 Class Distribution -------------------- 50% | Mutant 33% | Gunner 11% | Scavenger-Mutant 5% | Scavenger-Gunner Dominant Class ---------------- Mutant | -10/Materials Mutant | -9/Materials Mutant | -9/Mines Scavenger-Mutant | -9/Exiles Mutant | -8/Mines Mutant | -8/Materials Gunner | -7/Factory Mutant | -7/Lower Caves Resources | -11 -10 -9 -9 -9 -8 -8 -7 -7 ----------- Run | Yrd Mat Mat Min Exi Min Mat Fac Low Matter Collected 4924 | 290 147 168 77 . 40 1691 2511 . Remotely 493 | . . . . . . . 493 . Salvage Created 8135 | 151 436 364 177 23 3 2407 4574 . Parts 429 | 10 23 28 9 . 3 119 237 . Haulers Intercepted 11 | . 2 1 . . . 6 2 . Recyclers Shooed 5 | . . . 1 . . 4 . . Parts Field Recycled . | . . . . . . . . . Retrieved Matter . | . . . . . . . . . Parts Self-Destructed . | . . . . . . . . . Prevented . | . . . . . . . . . Parts Restored . | . . . . . . . . . Kills | -11 -10 -9 -9 -9 -8 -8 -7 -7 ------- Run | Yrd Mat Mat Min Exi Min Mat Fac Low Combat Hostiles Destroyed 144 | . 10 9 1 4 4 38 78 . Guns 71 | . 10 4 . . . 18 39 . Cannons 23 | . . 5 1 . . 12 5 . AOE 40 | . . . . 4 4 7 25 . Classes Destroyed 19 | 2 4 1 . 1 . 5 6 . Worker 14 | . 3 . . . . 3 8 . Builder 11 | . . . . . . . 11 . Tunneler 4 | 2 . . 1 . . . 1 . Hauler 11 | . 2 1 . . . 6 2 . Recycler 13 | 1 . 2 1 . . 7 2 . Mechanic 2 | . . . . . . 1 1 . Operator 2 | . . . . . . 1 1 . Watcher 1 | . . . . . . 1 . . Swarmer 37 | . 3 7 . . 4 11 12 . Grunt 60 | . 7 . . . . 16 37 . Brawler 5 | . . . . . . . 5 . Duelist 5 | . . . . . . . 5 . Protector 1 | . . . . . . . 1 . Sentry 14 | . . 2 . . . 8 4 . Specialist 2 | . . . . . . 2 . . Hunter 2 | . . . . . . . 2 . Programmer 12 | . . . . . . . 12 . Heavy 1 | . . . . . . 1 . . Assembled 4 | . . . . 4 . . . . Best Kill Streak 10 | 2 6 7 1 4 4 10 10 . Combat Bots Only 8 | . 4 6 1 4 4 8 6 . Max Kills in Single Turn 4 | 1 2 2 1 3 2 4 4 . Gunslinging 1 | . 1 . . . . . 1 . Exploded 4 | . . . . 3 2 4 4 . Melee . | . . . . . . . . . Uniques/NPCs Destroyed 1 | . . . 1 . . . . . YI-UF0 (-9/Mines) Combat | -11 -10 -9 -9 -9 -8 -8 -7 -7 -------- Run | Yrd Mat Mat Min Exi Min Mat Fac Low Hostile Shots Fired 843 | . 64 54 18 82 7 216 397 5 Missed 258 | . 11 9 6 28 1 71 131 1 Hits 585 | . 53 45 12 54 6 145 266 4 Melee 13 | . . . . . . . 9 4 Projectile 572 | . 53 45 12 54 6 145 257 . AOE 18 | . . . 18 . . . . . Critical Strikes 41 | . 1 3 . 24 . 7 6 . Actively Blocked 1 | . . . . . . 1 . . Damage Taken 8738 | . 576 431 534 918 63 2137 4070 9 Core 1110 | . 109 86 52 108 7 202 537 9 Absorbed by Shields . | . . . . . . . . . Redirected to Shielding 103 | . . . . . . 103 . . Regen/Repaired (Parts) 317 | . 156 . . . . 161 . . Core Remaining (%) 63 | 100 56 . . . 36 63 . . Volleys Fired 460 | 10 49 21 9 29 3 166 173 . Largest 3 | 2 2 2 2 2 1 2 3 . Hottest 199 | 60 105 95 91 143 33 131 199 . Shots Fired 896 | 19 92 42 18 38 3 291 393 . Gun 719 | 19 92 24 9 4 . 234 337 . Cannon 156 | . . 18 9 30 . 54 45 . Launcher 21 | . . . . 4 3 3 11 . Special . | . . . . . . . . . Kinetic 543 | 10 29 21 9 4 . 230 240 . Thermal 307 | 9 63 21 9 30 . 57 118 . Explosive 21 | . . . . 4 3 3 11 . Electromagnetic 25 | . . . . . . 1 24 . Robot Hit Streak 32 | 5 13 12 17 5 . 32 13 . Robot Miss Streak 8 | 3 5 4 2 3 . 4 8 . Penetration Max 1 | . . . . . . . 1 . Secondary Targets 6 | . 1 . . . . 2 3 . Max Gunslinging Chain 1 | . 1 . . . . 1 1 . Shots Hit Robots 541 | 12 54 26 13 21 . 194 221 . Core Hits 349 | 4 24 15 4 10 4 91 197 . Critical Kills 2 | . . . . . . 1 1 . Critical Parts Destroyed 1 | . . . . . . . 1 . Critical Strikes 7 | . . 1 . . . 1 5 . Burn 4 | . . 1 . . . . 3 . Meltdown 1 | . . . . . . 1 . . Destroy 2 | . . . . . . . 2 . Melee Attacks . | . . . . . . . . . Impact . | . . . . . . . . . Slashing . | . . . . . . . . . Piercing . | . . . . . . . . . Sneak Attacks . | . . . . . . . . . Combat Hostiles . | . . . . . . . . . Follow-up Attacks . | . . . . . . . . . Damage Inflicted 17123 | 143 685 455 249 323 373 4238 10657 . Guns 7973 | 143 668 274 79 29 . 2621 4159 . Cannons 1670 | . . 170 164 36 . 959 341 . Explosions 7002 | . . . . 258 300 471 5973 . Melee . | . . . . . . . . . Ramming 478 | . 17 11 6 . 73 187 184 . Kinetic 5972 | 88 192 220 79 29 . 2709 2655 . Thermal 3567 | 55 476 224 164 36 . 877 1735 . Explosive 1497 | . . . . 258 300 367 572 . Electromagnetic 5609 | . . . . . . 98 5511 . Impact . | . . . . . . . . . Slashing . | . . . . . . . . . Piercing . | . . . . . . . . . Highest Corruption 52 | . . . . . . 3 52 52 Average Corruption 28 | . . . . . . 3 28 52 Corruption Purged 5 | . . . . . . . 5 . Corruption Blocked . | . . . . . . . . . Effects 240 | . . . . . . 4 232 4 Message Errors 59 | . . . . . . . 58 1 Matter Fused 53 | . . . . . . 1 51 1 Heat Flow Errors 24 | . . . . . . 2 22 . Energy Discharges 23 | . . . . . . . 23 . Parts Rejected 1 | . . . . . . . 1 . Parts Fused 2 | . . . . . . . 2 . Data Loss (minor) 28 | . . . . . . 1 27 . Data Loss (major) 5 | . . . . . . . 5 . Misfires 8 | . . . . . . . 8 . Alerts 7 | . . . . . . . 7 . Misdirections 8 | . . . . . . . 6 2 Weapon Failures 22 | . . . . . . . 22 . Overload Shots . | . . . . . . . . . Overflow Damage 224 | . . . . . 33 17 174 . Projectiles . | . . . . . . . . . Explosions 208 | . . . . . 33 10 165 . Melee 16 | . . . . . . 7 9 . Knockbacks 10 | . . 1 . . . 8 1 . Impact 2 | . . . . . . 1 1 . Kinetic 7 | . . 1 . . . 6 . . Secondary 1 | . . . . . . 1 . . Self-Inflicted Damage 249 | . . . . . 12 14 223 . Shots 7 | . . . . . 1 1 5 . Rammed 41 | . 3 2 1 . 6 16 13 . Targets Rammed 47 | . 5 2 2 . 6 17 15 . Kicked . | . . . . . . . . . Crushed 6 | . 2 . 1 . . 1 2 . Highest Temperature 579 | . 328 418 158 327 . 230 579 . Average Temperature 98 | . 92 148 97 185 . 29 97 . Received Heat Transfer 2310 | . 234 63 . . . 828 1185 . Effects 17 | . . 1 . 2 . . 14 . Shutdowns 5 | . . 1 . . . . 4 . Energy Bleed 1 | . . . . . . . 1 . Interference 7 | . . . . 2 . . 5 . Damage (major) 4 | . . . . . . . 4 . Siege Activations . | . . . . . . . . . Martial Activations . | . . . . . . . . . Shielding Activations . | . . . . . . . . . Robots Disrupted . | . . . . . . . . . Combat Hostiles . | . . . . . . . . . Robots Corrupted 10 | . . . . . . . 10 . Combat Hostiles 9 | . . . . . . . 9 . Parts Fried 39 | . . . . . . 1 38 . Impact Corruptions 4 | . . . . . . 1 3 . Robots Melted 1 | . . . . . . 1 . . Combat Hostiles 1 | . . . . . . 1 . . Parts Melted 14 | . 2 3 . . . 4 5 . Heat Transferred 7252 | 125 1083 592 296 162 . 1752 3242 . Parts Sabotaged . | . . . . . . . . . Parts Stolen 3 | . . . . . . . . 3 Parts Stripped . | . . . . . . . . . Power Chain Reactions . | . . . . . . . . . Latent Energy Used 3000 | . . . . . . 200 2800 . LE Corruption 55 | . . . . . . 3 52 . Alert | -11 -10 -9 -9 -9 -8 -8 -7 -7 ------- Run | Yrd Mat Mat Min Exi Min Mat Fac Low Maximum Alert Level 5 | . . . . . . 2 5 . Low Security (%) 38 | 100 100 100 100 . 100 26 12 . Level 1 14 | . . . . . . 40 2 . Level 2 15 | . . . . . . 32 12 . Level 3 10 | . . . . . . . 23 . Level 4 12 | . . . . . . . 28 . Level 5 8 | . . . . . . . 19 . High Security . | . . . . . . . . . Max Security . | . . . . . . . . . Peak Influence 2322 | 10 170 177 22 . 111 504 2322 . Initial 227 | . . 6 22 . . . 227 . Average 553 | 1 62 68 1 . 26 301 1040 . Influence Increases 5132 | 15 339 289 10 . 111 1373 2995 . Destroy 0b10 Robot/C 2760 | . 200 180 . . 80 760 1540 . Destroy 0b10 Robot/NC 295 | 15 25 15 10 . . 95 135 . Destroy Leader 624 | . 44 42 . . 10 194 334 . Successful Hack 65 | . 9 7 . . . 37 12 . Disable Machine 465 | . . 15 . . . 135 315 . Anti-Garrison Action 150 | . . . . . . . 150 . Destroy Structure 368 | . 1 . . . 21 107 239 . Lose Combat Pursuer 405 | . 60 30 . . . 45 270 . Influence Decreases 3680 | 15 323 248 67 . 111 872 1174 870 Entered New Map 1179 | . . 10 35 . . . 274 860 Time Decay 2104 | 15 303 238 32 . 111 625 770 10 Lost Part 247 | . 20 . . . . 97 130 . Purge Threat 150 | . . . . . . 150 . . Squads Dispatched 36 | . 2 . . . . 5 29 . Investigation 4 | . . . . . . 1 3 . Extermination 8 | . . . . . . . 8 . Reinforcement 12 | . 2 . . . . 4 6 . Assault 11 | . . . . . . . 11 . Garrison 1 | . . . . . . . 1 . Intercept . | . . . . . . . . . Searches Triggered . | . . . . . . . . . Construction Impeded 4 | . . . . . . . 4 . Haulers Reinforced 1 | . . . . . . . 1 . Active Scanning Responses . | . . . . . . . . . Cargo Convoy Interrupts . | . . . . . . . . . Stealth | -11 -10 -9 -9 -9 -8 -8 -7 -7 --------- Run | Yrd Mat Mat Min Exi Min Mat Fac Low Distress Signals 13 | . 2 3 . . . 2 6 . Communications Jammed . | . . . . . . . . . Distress Signals . | . . . . . . . . . Times Spotted 235 | . 19 13 1 6 4 58 131 3 Peak Tracking Total 9 | . 8 6 1 9 4 7 8 3 Tactical Retreats 17 | . 3 2 . . . 3 9 . Traps | -11 -10 -9 -9 -9 -8 -8 -7 -7 ------- Run | Yrd Mat Mat Min Exi Min Mat Fac Low Traps Triggered 4 | . 2 . . . . . 2 . Indirectly 1 | . . . . . . . 1 . Trap Hack Attempts . | . . . . . . . . . Triggered . | . . . . . . . . . Disarmed . | . . . . . . . . . Reprogrammed . | . . . . . . . . . Reused . | . . . . . . . . . Traps Reconfigurated 6 | . . . . . . . 6 . Traps Extracted . | . . . . . . . . . Installed . | . . . . . . . . . Triggered . | . . . . . . . . . Machines | -11 -10 -9 -9 -9 -8 -8 -7 -7 ---------- Run | Yrd Mat Mat Min Exi Min Mat Fac Low Machines Disabled 38 | . . 1 . 6 . 9 22 . Max in Single Turn 3 | . . 1 . 3 . 2 2 . Garrison Access 2 | . . . . . . 1 1 . Machines Repaired . | . . . . . . . . . Machines Dismantled . | . . . . . . . . . Machines Sabotaged . | . . . . . . . . . Overloaded Fab Kills . | . . . . . . . . . Hacking | -11 -10 -9 -9 -9 -8 -8 -7 -7 --------- Run | Yrd Mat Mat Min Exi Min Mat Fac Low Machines Accessed 27 | . 3 1 . 2 . 8 13 . Terminals 17 | . 2 1 . . . 5 9 . Fabricators . | . . . . . . . . . Repair Stations 4 | . 1 . . . . 1 2 . Recycling Units . | . . . . . . . . . Scanalyzers 2 | . . . . . . 1 1 . Garrison Access 2 | . . . . . . 1 1 . Total Hacks 58 | . 10 3 . 2 . 21 22 . Successful 19 | . 6 1 . 2 . 9 1 . Failed 38 | . 4 2 . . . 11 21 . Catastrophic 12 | . . . . . . 1 11 . Database Lockouts 1 | . . . . . . 1 . . Manual 27 | . 3 3 . 1 . 12 8 . Terminals 32 | . 3 3 . . . 12 14 . Fabricators . | . . . . . . . . . Repair Stations 18 | . 7 . . . . 6 5 . Recycling Units . | . . . . . . . . . Scanalyzers 3 | . . . . . . 2 1 . Garrison Access 3 | . . . . . . 1 2 . Terminal Hacks 6 | . 1 1 . 2 . 2 . . Record 1 | . . . . 1 . . . . Part Schematic 1 | . 1 . . . . . . . Robot Schematic 1 | . . 1 . . . . . . Branch Access Points 1 | . . . . . . 1 . . Unreport Threat 1 | . . . . . . 1 . . Proto ID Catalog 1 | . . . . 1 . . . . Fabricator Hacks . | . . . . . . . . . Repair Station Hacks 9 | . 5 . . . . 3 1 . Scan Component 6 | . 3 . . . . 2 1 . Repair 3 | . 2 . . . . 1 . . Recycling Unit Hacks . | . . . . . . . . . Scanalyzer 1 | . . . . . . 1 . . Retrieve Study 1 | . . . . . . 1 . . Garrison Access Hacks 1 | . . . . . . 1 . . Seal Access 1 | . . . . . . 1 . . Unauthorized Hacks 2 | . . . . . . 2 . . Terminals 2 | . . . . . . 2 . . Botnet 2 | . . . . . . 2 . . Fabricators . | . . . . . . . . . Repair Stations . | . . . . . . . . . Recycling Units . | . . . . . . . . . Scanalyzers . | . . . . . . . . . Garrison Access . | . . . . . . . . . Data Cores Recovered . | . . . . . . . . . Used . | . . . . . . . . . Hacking Detections 22 | . 3 1 . . . 5 13 . Full Trace Events 4 | . . . . . . 1 3 . Feedback Events . | . . . . . . . . . Feedback Blocked . | . . . . . . . . . Robot Schematics Acquired 1 | . . 1 . . . . . . Robots Built . | . . . . . . . . . Authchips . | . . . . . . . . . Time . | . . . . . . . . . Total Robot Build Rating . | . . . . . . . . . Part Schematics Acquired 1 | . 1 . . . . . . . Parts Built . | . . . . . . . . . Authchips . | . . . . . . . . . Time . | . . . . . . . . . Total Part Build Rating . | . . . . . . . . . Part Studies Acquired 1 | . . . . . . 1 . . Parts Repaired 3 | . 2 . . . . 1 . . Time 100 | . 62 . . . . 38 . . Parts Recycled . | . . . . . . . . . Recycled Matter . | . . . . . . . . . Retrieved Matter . | . . . . . . . . . Retrieved Components . | . . . . . . . . . Parts Scanalyzed . | . . . . . . . . . Part Schematics Acquired . | . . . . . . . . . Parts Damaged . | . . . . . . . . . Bothacking | -11 -10 -9 -9 -9 -8 -8 -7 -7 ------------ Run | Yrd Mat Mat Min Exi Min Mat Fac Low Used RIF Installer . | . . . . . . . . . Robots Hacked . | . . . . . . . . . Non-combat . | . . . . . . . . . Combat . | . . . . . . . . . Robot Hacks Applied . | . . . . . . . . . Relay Couplers Released 8 | . . . . . . . 8 . Machine Destruction 1 | . . . . . . . 1 . Programmers 7 | . . . . . . . 7 . Fabnet Peak Effective % . | . . . . . . . . . Robots Rewired . | . . . . . . . . . Allies Hacked . | . . . . . . . . . Hacks Repelled . | . . . . . . . . . Allies | -11 -10 -9 -9 -9 -8 -8 -7 -7 -------- Run | Yrd Mat Mat Min Exi Min Mat Fac Low Total Allies . | . . . . . . . . . Largest Group . | . . . . . . . . . Highest-Rated Group . | . . . . . . . . . Highest-Rated Ally . | . . . . . . . . . Total Orders . | . . . . . . . . . Ally Attacks . | . . . . . . . . . Total Damage . | . . . . . . . . . Kills . | . . . . . . . . . Allies Corrupted . | . . . . . . . . . Allies Melted . | . . . . . . . . . Intel | -11 -10 -9 -9 -9 -8 -8 -7 -7 ------- Run | Yrd Mat Mat Min Exi Min Mat Fac Low Active Infowar (turns) 3282 | . 444 . . . . 1425 1413 . Terrain 6 | . . . . . . 6 . . Traps 2489 | . . . . . . 1419 1070 . Seismic 444 | . 444 . . . . . . . Machine Analysis 343 | . . . . . . . 343 . Robot Analysis Total . | . . . . . . . . . Derelict Logs Recovered 1 | . . . . . . . . 1 Drone Launches . | . . . . . . . . . Drone Recoveries . | . . . . . . . . . Exploration | -11 -10 -9 -9 -9 -8 -8 -7 -7 ------------- Run | Yrd Mat Mat Min Exi Min Mat Fac Low Turns Passed 12464 | 125 1033 670 547 879 500 3726 4951 33 Spaces Moved 5398 | 53 461 322 309 451 298 1647 1794 63 Core 151 | 6 . . . . . . 82 63 Treads 5247 | 47 461 322 309 451 298 1647 1712 . Legs . | . . . . . . . . . Wheels . | . . . . . . . . . Hover . | . . . . . . . . . Flight . | . . . . . . . . . Fastest Speed 50 | 50 160 160 160 160 160 156 50 50 Average Speed 190 | 147 160 160 160 165 160 184 231 50 Slowest Speed 330 | 160 160 160 160 240 160 330 241 50 Overloaded Moves . | . . . . . . . . . Propulsion Burnouts . | . . . . . . . . . Robots Hopped . | . . . . . . . . . Potential Cave-ins . | . . . . . . . . . Cave-ins Triggered . | . . . . . . . . . Exploration Rate (%) 51 | 3 57 31 64 62 79 93 61 13 Regions Visited 8 Branch Regions 4 Pre-discovered Areas 2 | . . . . 1 . . . 1 Known Exits Taken 1 | . . . . . . . 1 . Unknown Exits Taken 7 | 1 1 1 1 1 1 1 . . Scrap Searched 3 | . . . 1 . 1 . . 1 Spaces Dug . | . . . . . . . . . Terrain Destroyed 478 | . . . . 28 32 117 301 . Melee . | . . . . . . . . . Projectile 6 | . . . . 2 . 2 2 . AOE 472 | . . . . 26 32 115 299 . Terrain Rammed . | . . . . . . . . . Walls Destroyed . | . . . . . . . . . Machines Disabled . | . . . . . . . . . Actions | -11 -10 -9 -9 -9 -8 -8 -7 -7 --------- Run | Yrd Mat Mat Min Exi Min Mat Fac Low Total 6818 | 81 663 438 345 549 315 2112 2251 64 Wait 498 | . 126 46 15 37 . 157 117 . Move 5390 | 52 460 321 308 450 297 1646 1793 63 Hop . | . . . . . . . . . Pick Up 126 | 13 13 23 4 11 5 36 21 . Fast Attach 20 | . . . . . . 8 12 . Attach 50 | 6 5 4 5 2 3 13 12 . Detach 3 | . . . . . 1 1 1 . Swap 130 | . 2 7 . 8 . 34 79 . Drop 93 | . 3 14 2 12 . 34 28 . Fire 460 | 10 49 21 9 29 3 166 173 . Melee . | . . . . . . . . . Ram 1 | . . . . . . . . 1 Kick . | . . . . . . . . . Crush 47 | . 5 2 2 . 6 17 15 . Escape Stasis . | . . . . . . . . . Rewire . | . . . . . . . . . Trap . | . . . . . . . . . Miscellaneous . | . . . . . . . . . Route ------- -11/Scrapyard -10/Materials (discovered 2 exits: *Mat x2) -9/Materials -9/Mines (discovered 3 exits: *Mat / *Exi / [*Zio]) -9/Exiles -8/Mines (discovered 2 exits: *Mat x2) -8/Materials (discovered 3 exits: *Fac x3) -7/Factory (discovered 3 exits: *Fac x2 / *Low) -7/Lower Caves History --------- Turn | Location | Event 6 | -11/Scrapyard | Discovered new exit (range 16) 126 | -11/Scrapyard | Entered Materials 316 | -10/Materials | Build established: Mutant 426 | -10/Materials | Discovered new exit (range 13) 766 | -10/Materials | Discovered new exit (range 10) 989 | -10/Materials | Repaired Broken Lgt. Treads 1017 | -10/Materials | Repaired Lgt. Treads 1159 | -10/Materials | Entered another Materials area 1159 | -9/Materials | Evolved 2 slots: Propulsion x1, Utility x1 1800 | -9/Materials | Discovered new exit (range 6) 1829 | -9/Materials | Entered Mines 1857 | -9/Mines | A weapon hastily lodged in a ceiling crevice suddenly fell to the ground 1996 | -9/Mines | A Derelict revealed a hidden shortcut to a safe place 1999 | -9/Mines | Discovered new exit (range 10) 2210 | -9/Mines | YI-UF0 nonchalantly dropped a Grenade Launcher on the ground 2254 | -9/Mines | Destroyed YI-UF0 2281 | -9/Mines | Lost 4 parts (1p1n2u) 2368 | -9/Mines | Deemed a non-threat by the Exiles lab entrance 2370 | -9/Mines | Discovered new exit (range 5) 2376 | -9/Mines | Entered Exiles 2442 | -9/Exiles | Met 8R-AWN 2467 | -9/Exiles | Met EX-HEX 2511 | -9/Exiles | Met EX-BIN 2531 | -9/Exiles | Met EX-DEC 2538 | -9/Exiles | Learned location of Zion (-7) 2539 | -9/Exiles | Build established: Scavenger-Mutant 2597 | -9/Exiles | Aligned with FarCom system 2599 | -9/Exiles | Given EX-Vault access code 2637 | -9/Exiles | Opened EX-Vault 2650 | -9/Exiles | Found Trap Reconfigurator 2656 | -9/Exiles | Found AWS/Thermal 2659 | -9/Exiles | Found Latent Energy Streamer 2690 | -9/Exiles | Warned to stay clear of 0b10 Research branches 3044 | -9/Exiles | Attacked by the Exiles 3173 | -9/Exiles | Core integrity fell below 50% 3217 | -9/Exiles | Discovered new exit (range 15) 3255 | -9/Exiles | Stole three prototypes: Trap Reconfigurator, AWS/Thermal, Latent Energy Streamer 3255 | -9/Exiles | Entered Mines 3287 | -8/Mines | Lost 7 parts (1p3n1u2w) 3326 | -8/Mines | Build established: Mutant 3512 | -8/Mines | Discovered new exit (range 12) 3736 | -8/Mines | Discovered new exit (range 10) 3755 | -8/Mines | Entered Materials 3755 | -8/Materials | Evolved 2 slots: Propulsion x1, Utility x1 3913 | -8/Materials | Central database locked down 4073 | -8/Materials | Build established: Scavenger-Mutant 4203 | -8/Materials | Lost 3 parts (1p2n) 4247 | -8/Materials | Lost 3 parts (1n2u) 4296 | -8/Materials | Destroyed 8 combat bots 4473 | -8/Materials | Build established: Mutant 4812 | -8/Materials | Repaired Arm. Treads 5064 | -8/Materials | Discovered new exit (range 16) 6083 | -8/Materials | Discovered new exit (range 7) 7380 | -8/Materials | Discovered new exit (range 15) 7481 | -8/Materials | Entered Factory 7481 | -7/Factory | Evolved 2 slots: Power x1, Weapon x1 7544 | -7/Factory | Discovered new exit (range 15) 7684 | -7/Factory | Identified exit to Lower Caves 7769 | -7/Factory | Build established: Gunner 8231 | -7/Factory | Garrison activated, responded to threat 8258 | -7/Factory | System corruption reached 10% 9013 | -7/Factory | Discovered new exit (range 15) 10281 | -7/Factory | First assault squad dispatched 10589 | -7/Factory | System corruption reached 30% 11062 | -7/Factory | Discovered new exit (range 15) 11106 | -7/Factory | Identified exit to Factory 12224 | -7/Factory | Lost 3 parts (3n) 12340 | -7/Factory | Core integrity fell below 50% 12381 | -7/Factory | Released all parts (9) 12407 | -7/Factory | Lost 4 parts (1p2n1w) 12432 | -7/Factory | Entered Lower Caves 12433 | -7/Lower Caves | Latent Energy Streamer stolen by Master Thief 12434 | -7/Lower Caves | Encountered a Master Thief 12434 | -7/Lower Caves | Encountered a Master Thief 12438 | -7/Lower Caves | Hcp. Storage Unit stolen by Master Thief 12439 | -7/Lower Caves | Encountered a Master Thief 12443 | -7/Lower Caves | Hrd. Heavy Armor Plating stolen by Master Thief 12465 | -7/Lower Caves | Self-destructed Last Messages --------------- U-05 Engineer lays Concrete. K-01 Serf collects debris. System corrupted: Energy discharge (-35). Acquired 17 matter. LOCATION=LOWER CAVES GOAL=ESCAPE Latent Energy Streamer stolen. 19-NZU(f): "I heard you've acquired some good parts, parts that will soon be mine." N6XX&WQ>PTN=V &LY